[Event "Titled Tuesday Blitz July 18 Late 2023"]
[White "Miguelitro69"]
[Black "Yolosz"]
[WhiteElo "2257"]
[BlackElo "2379"]
[Result "1-0"]
[Round "10"]
[TimeControl "180+2"]
[Date "2023.07.18"]
[WhiteClock "0:00:41"]
[BlackClock "0:00:06"]
[Board "100"]

1. e4 {[%clk 0:03:00]}  c5 {[%clk 0:02:59]} 2. Nf3 {[%clk 0:03:01]}  Nc6 {[%clk 0:02:59]} 3. d4 {[%clk 0:03:01]}  cxd4 {[%clk 0:02:59]} 4. Nxd4 {[%clk 0:03:02]}  g6 {[%clk 0:02:59]} 5. Nc3 {[%clk 0:03:02]}  Bg7 {[%clk 0:02:59]} 6. Be3 {[%clk 0:03:03]}  Nf6 {[%clk 0:02:59]} 7. Bc4 {[%clk 0:03:03]}  O-O {[%clk 0:02:56]} 8. Bb3 {[%clk 0:03:04]}  a5 {[%clk 0:02:54]} 9. a4 {[%clk 0:03:03]}  d5 {[%clk 0:02:51]} 10. exd5 {[%clk 0:02:57]}  Nb4 {[%clk 0:02:44]} 11. Ndb5 {[%clk 0:02:57]}  Ng4 {[%clk 0:02:24]} 12. Bd4 {[%clk 0:02:55]}  Ra6 {[%clk 0:02:04]} 13. Bxg7 {[%clk 0:02:53]}  Kxg7 {[%clk 0:02:05]} 14. h3 {[%clk 0:02:48]}  Nf6 {[%clk 0:02:03]} 15. O-O {[%clk 0:02:45]}  Bd7 {[%clk 0:01:55]} 16. Qd4 {[%clk 0:02:42]}  Bxb5 {[%clk 0:01:52]} 17. axb5 {[%clk 0:02:43]}  Rd6 {[%clk 0:01:46]} 18. b6 {[%clk 0:02:37]}  Qxb6 {[%clk 0:01:45]} 19. Qxb6 {[%clk 0:02:35]}  Rxb6 {[%clk 0:01:46]} 20. Rxa5 {[%clk 0:02:35]}  Rd8 {[%clk 0:01:43]} 21. Re1 {[%clk 0:02:31]}  Kf8 {[%clk 0:01:43]} 22. Rc5 {[%clk 0:02:26]}  Nd3 {[%clk 0:01:40]} 23. cxd3 {[%clk 0:02:18]}  Rxb3 {[%clk 0:01:40]} 24. Rc7 {[%clk 0:02:16]}  Nxd5 {[%clk 0:01:28]} 25. Nxd5 {[%clk 0:02:14]}  Rxd5 {[%clk 0:01:27]} 26. Rexe7 {[%clk 0:02:12]}  Rf5 {[%clk 0:01:24]} 27. Rxb7 {[%clk 0:02:10]}  Rxd3 {[%clk 0:01:24]} 28. Re2 {[%clk 0:02:09]}  Rd1+ {[%clk 0:01:20]} 29. Kh2 {[%clk 0:02:08]}  h5 {[%clk 0:01:16]} 30. h4 {[%clk 0:01:51]}  Rf1 {[%clk 0:01:08]} 31. Kg3 {[%clk 0:01:48]}  g5 {[%clk 0:01:03]} 32. hxg5 {[%clk 0:01:40]}  Rxg5+ {[%clk 0:01:03]} 33. Kh2 {[%clk 0:01:38]}  h4 {[%clk 0:00:57]} 34. Rb4 {[%clk 0:01:24]}  h3 {[%clk 0:00:55]} 35. g3 {[%clk 0:01:20]}  Rf5 {[%clk 0:00:52]} 36. Rf4 {[%clk 0:01:16]}  Rb5 {[%clk 0:00:32]} 37. Rc2 {[%clk 0:01:04]}  Rb1 {[%clk 0:00:30]} 38. Rc8+ {[%clk 0:01:02]}  Kg7 {[%clk 0:00:29]} 39. Rc7 {[%clk 0:01:02]}  R1xb2 {[%clk 0:00:28]} 40. Rcxf7+ {[%clk 0:01:01]}  Kg8 {[%clk 0:00:28]} 41. Kxh3 {[%clk 0:01:01]}  R2b3 {[%clk 0:00:26]} 42. Kg4 {[%clk 0:01:00]}  Rc3 {[%clk 0:00:24]} 43. Rf8+ {[%clk 0:01:00]}  Kg7 {[%clk 0:00:24]} 44. R8f5 {[%clk 0:00:59]}  Rb6 {[%clk 0:00:23]} 45. Rg5+ {[%clk 0:00:59]}  Kh6 {[%clk 0:00:23]} 46. Rh5+ {[%clk 0:00:56]}  Kg7 {[%clk 0:00:21]} 47. Kh4 {[%clk 0:00:54]}  Rc2 {[%clk 0:00:17]} 48. Rg5+ {[%clk 0:00:53]}  Kh6 {[%clk 0:00:17]} 49. Rg8 {[%clk 0:00:52]}  Rc5 {[%clk 0:00:12]} 50. Kh3 {[%clk 0:00:49]}  Kh7 {[%clk 0:00:10]} 51. Rgg4 {[%clk 0:00:48]}  Rh5+ {[%clk 0:00:08]} 52. Kg2 {[%clk 0:00:49]}  Rb1 {[%clk 0:00:08]} 53. Rh4 {[%clk 0:00:48]}  Kg6 {[%clk 0:00:08]} 54. Rxh5 {[%clk 0:00:48]}  Kxh5 {[%clk 0:00:09]} 55. Ra4 {[%clk 0:00:47]}  Kg5 {[%clk 0:00:09]} 56. Ra5+ {[%clk 0:00:42]}  Kf6 {[%clk 0:00:06]} 57. f4 {[%clk 0:00:41]} 1-0


[Site "https://www.chess.com"]

[Event "Titled Tuesday Blitz July 18 Late 2023"]
[White "UgarteCesar"]
[Black "Todev, Simeon"]
[BlackFideId "2925133"]
[WhiteElo "2245"]
[BlackElo "2373"]
[Result "1-0"]
[Round "10"]
[TimeControl "180+2"]
[Date "2023.07.18"]
[WhiteClock "0:01:59"]
[BlackClock "0:02:44"]
[Board "101"]

1. d4 {[%clk 0:03:00]}  g6 {[%clk 0:03:00]} 2. Bf4 {[%clk 0:03:00]}  Bg7 {[%clk 0:02:59]} 3. e3 {[%clk 0:03:01]}  d5 {[%clk 0:02:58]} 4. Nf3 {[%clk 0:03:01]}  c5 {[%clk 0:02:59]} 5. c3 {[%clk 0:03:00]}  Nc6 {[%clk 0:03:00]} 6. h3 {[%clk 0:03:00]}  Bf5 {[%clk 0:03:00]} 7. Bd3 {[%clk 0:03:00]}  Qb6 {[%clk 0:03:00]} 8. Bxf5 {[%clk 0:02:58]}  Qxb2 {[%clk 0:02:58]} 9. Bd7+ {[%clk 0:02:58]}  Kxd7 {[%clk 0:02:58]} 10. Nbd2 {[%clk 0:02:58]}  Qxc3 {[%clk 0:02:54]} 11. Rc1 {[%clk 0:02:57]}  Qa5 {[%clk 0:02:54]} 12. Rxc5 {[%clk 0:02:57]}  Qxa2 {[%clk 0:02:54]} 13. O-O {[%clk 0:02:51]}  e6 {[%clk 0:02:54]} 14. Qe2 {[%clk 0:02:31]}  b6 {[%clk 0:02:51]} 15. Rxc6 {[%clk 0:02:24]}  Kxc6 {[%clk 0:02:51]} 16. Rc1+ {[%clk 0:02:23]}  Kb7 {[%clk 0:02:47]} 17. Qb5 {[%clk 0:02:22]}  Nf6 {[%clk 0:02:42]} 18. Rc7+ {[%clk 0:02:14]}  Kb8 {[%clk 0:02:42]} 19. Rxf7+ {[%clk 0:02:05]}  Kc8 {[%clk 0:02:43]} 20. Qc6+ {[%clk 0:02:04]}  Kd8 {[%clk 0:02:43]} 21. Qc7+ {[%clk 0:01:59]}  Ke8 {[%clk 0:02:44]} 22. Qe7# {[%clk 0:01:59]} 1-0


[Site "https://www.chess.com"]

[Event "Titled Tuesday Blitz July 18 Late 2023"]
[White "Shapiro, Daniel"]
[Black "De Arruda, Leandro Formes"]
[WhiteFideId "2001780"]
[BlackFideId "22722009"]
[WhiteElo "2354"]
[BlackElo "2217"]
[Result "1-0"]
[Round "10"]
[TimeControl "180+2"]
[Date "2023.07.18"]
[WhiteClock "0:00:18"]
[BlackClock "0:00:10"]
[Board "103"]

1. d4 {[%clk 0:03:00]}  d5 {[%clk 0:02:59]} 2. c4 {[%clk 0:03:00]}  e6 {[%clk 0:02:59]} 3. Nf3 {[%clk 0:03:00]}  Nf6 {[%clk 0:02:57]} 4. g3 {[%clk 0:03:00]}  c6 {[%clk 0:02:58]} 5. Qc2 {[%clk 0:03:00]}  Be7 {[%clk 0:02:58]} 6. Bg2 {[%clk 0:03:00]}  Nbd7 {[%clk 0:02:57]} 7. O-O {[%clk 0:03:00]}  O-O {[%clk 0:02:56]} 8. Rd1 {[%clk 0:03:01]}  Ne4 {[%clk 0:02:55]} 9. Ne5 {[%clk 0:02:59]}  f5 {[%clk 0:02:55]} 10. Nd3 {[%clk 0:02:56]}  Bf6 {[%clk 0:02:51]} 11. e3 {[%clk 0:02:54]}  Qe8 {[%clk 0:02:48]} 12. Nd2 {[%clk 0:02:34]}  Qh5 {[%clk 0:02:45]} 13. f3 {[%clk 0:02:19]}  Ng5 {[%clk 0:02:37]} 14. Nf2 {[%clk 0:02:13]}  Re8 {[%clk 0:02:30]} 15. h3 {[%clk 0:01:51]}  e5 {[%clk 0:02:26]} 16. g4 {[%clk 0:01:51]}  fxg4 {[%clk 0:02:22]} 17. fxg4 {[%clk 0:01:51]}  Qh4 {[%clk 0:02:17]} 18. cxd5 {[%clk 0:01:35]}  cxd5 {[%clk 0:02:05]} 19. Bxd5+ {[%clk 0:01:33]}  Kh8 {[%clk 0:02:03]} 20. Bg2 {[%clk 0:01:18]}  exd4 {[%clk 0:02:02]} 21. Nf1 {[%clk 0:01:03]}  dxe3 {[%clk 0:01:53]} 22. Bxe3 {[%clk 0:01:00]}  Ne5 {[%clk 0:01:50]} 23. Nh2 {[%clk 0:00:49]}  Qg3 {[%clk 0:01:43]} 24. Nf1 {[%clk 0:00:34]}  Qh4 {[%clk 0:00:47]} 25. Rac1 {[%clk 0:00:30]}  Be6 {[%clk 0:00:41]} 26. Bf4 {[%clk 0:00:22]}  Ngf3+ {[%clk 0:00:35]} 27. Kh1 {[%clk 0:00:20]}  Bxg4 {[%clk 0:00:30]} 28. Bg3 {[%clk 0:00:19]}  Qh5 {[%clk 0:00:26]} 29. Nxg4 {[%clk 0:00:19]}  Nxg4 {[%clk 0:00:13]} 30. Bxf3 {[%clk 0:00:19]}  Nh6 {[%clk 0:00:10]} 31. Bxh5 {[%clk 0:00:18]} 1-0


[Site "https://www.chess.com"]

[Event "Titled Tuesday Blitz July 18 Late 2023"]
[White "Figorito, Nick"]
[Black "Ricaurte Lopez, Juan Carlos"]
[WhiteFideId "30923689"]
[BlackFideId "3600327"]
[WhiteElo "2342"]
[BlackElo "2146"]
[Result "1/2-1/2"]
[Round "10"]
[TimeControl "180+2"]
[Date "2023.07.18"]
[WhiteClock "0:00:55"]
[BlackClock "0:00:53"]
[Board "104"]

1. Nf3 {[%clk 0:03:00]}  Nf6 {[%clk 0:02:54]} 2. g3 {[%clk 0:03:00]}  c5 {[%clk 0:02:52]} 3. Bg2 {[%clk 0:03:00]}  b6 {[%clk 0:02:50]} 4. O-O {[%clk 0:03:00]}  Bb7 {[%clk 0:02:50]} 5. c4 {[%clk 0:03:01]}  e6 {[%clk 0:02:44]} 6. Nc3 {[%clk 0:03:01]}  Be7 {[%clk 0:02:43]} 7. b3 {[%clk 0:03:00]}  O-O {[%clk 0:02:41]} 8. Bb2 {[%clk 0:03:01]}  a6 {[%clk 0:02:39]} 9. d4 {[%clk 0:03:01]}  cxd4 {[%clk 0:02:37]} 10. Qxd4 {[%clk 0:03:02]}  Nc6 {[%clk 0:02:35]} 11. Qd2 {[%clk 0:03:00]}  d6 {[%clk 0:02:31]} 12. Nd4 {[%clk 0:02:51]}  Qc7 {[%clk 0:02:28]} 13. Nxc6 {[%clk 0:02:40]}  Bxc6 {[%clk 0:02:28]} 14. Bxc6 {[%clk 0:02:41]}  Qxc6 {[%clk 0:02:28]} 15. Rfd1 {[%clk 0:02:41]}  Rfd8 {[%clk 0:02:25]} 16. Rac1 {[%clk 0:02:40]}  Rac8 {[%clk 0:02:18]} 17. Qe3 {[%clk 0:02:40]}  h6 {[%clk 0:02:06]} 18. Qf3 {[%clk 0:02:38]}  Qxf3 {[%clk 0:02:03]} 19. exf3 {[%clk 0:02:39]}  Kf8 {[%clk 0:01:56]} 20. Ne4 {[%clk 0:02:34]}  Rc6 {[%clk 0:01:47]} 21. Nxf6 {[%clk 0:02:33]}  Bxf6 {[%clk 0:01:45]} 22. Bxf6 {[%clk 0:02:33]}  gxf6 {[%clk 0:01:44]} 23. f4 {[%clk 0:02:29]}  Ke7 {[%clk 0:01:42]} 24. Kf1 {[%clk 0:02:27]}  Rdc8 {[%clk 0:01:41]} 25. Rb1 {[%clk 0:02:16]}  b5 {[%clk 0:01:40]} 26. cxb5 {[%clk 0:02:15]}  axb5 {[%clk 0:01:41]} 27. Rb2 {[%clk 0:02:14]}  Rc2 {[%clk 0:01:39]} 28. Rd2 {[%clk 0:02:14]}  Rxb2 {[%clk 0:01:36]} 29. Rxb2 {[%clk 0:02:14]}  b4 {[%clk 0:01:36]} 30. Ke2 {[%clk 0:02:13]}  Rc3 {[%clk 0:01:33]} 31. Kd2 {[%clk 0:02:11]}  Rf3 {[%clk 0:01:29]} 32. Ke2 {[%clk 0:02:11]}  Rc3 {[%clk 0:01:28]} 33. Kd2 {[%clk 0:02:11]}  Rf3 {[%clk 0:01:27]} 34. Ke1 {[%clk 0:02:11]}  d5 {[%clk 0:01:24]} 35. Rc2 {[%clk 0:02:10]}  Rc3 {[%clk 0:01:20]} 36. Rxc3 {[%clk 0:01:50]}  bxc3 {[%clk 0:01:20]} 37. a4 {[%clk 0:01:51]}  d4 {[%clk 0:01:18]} 38. a5 {[%clk 0:01:45]}  Kd6 {[%clk 0:01:14]} 39. a6 {[%clk 0:01:40]}  Kc6 {[%clk 0:01:14]} 40. b4 {[%clk 0:01:39]}  d3 {[%clk 0:01:10]} 41. f3 {[%clk 0:01:25]}  Kb6 {[%clk 0:01:05]} 42. b5 {[%clk 0:01:24]}  Ka7 {[%clk 0:01:01]} 43. g4 {[%clk 0:01:21]}  Kb6 {[%clk 0:01:00]} 44. Kd1 {[%clk 0:01:21]}  Ka7 {[%clk 0:00:59]} 45. h4 {[%clk 0:01:21]}  Kb6 {[%clk 0:00:58]} 46. g5 {[%clk 0:01:07]}  fxg5 {[%clk 0:00:57]} 47. fxg5 {[%clk 0:01:05]}  h5 {[%clk 0:00:56]} 48. f4 {[%clk 0:01:01]}  Ka7 {[%clk 0:00:55]} 49. Kc1 {[%clk 0:00:58]}  Kb6 {[%clk 0:00:54]} 50. Kd1 {[%clk 0:00:55]}  Ka7 {[%clk 0:00:53]} 51. Kc1 {[%clk 0:00:55]}  Kb6 {[%clk 0:00:53]} 52. Kd1 {[%clk 0:00:55]} 1/2-1/2


[Site "https://www.chess.com"]

[Event "Titled Tuesday Blitz July 18 Late 2023"]
[White "Melikhov, Evgeny V."]
[Black "Mangialardo, Tiago Carvalho"]
[WhiteFideId "4122046"]
[BlackFideId "2130718"]
[WhiteElo "2364"]
[BlackElo "2152"]
[Result "1-0"]
[Round "10"]
[TimeControl "180+2"]
[Date "2023.07.18"]
[WhiteClock "0:01:32"]
[BlackClock "0:00:00"]
[Board "105"]

1. d4 {[%clk 0:03:00]}  Nf6 {[%clk 0:02:59]} 2. c4 {[%clk 0:03:00]}  c5 {[%clk 0:02:59]} 3. d5 {[%clk 0:03:00]}  g6 {[%clk 0:02:59]} 4. Nc3 {[%clk 0:03:00]}  Bg7 {[%clk 0:02:58]} 5. e4 {[%clk 0:03:00]}  d6 {[%clk 0:02:59]} 6. Nf3 {[%clk 0:02:57]}  O-O {[%clk 0:02:59]} 7. h3 {[%clk 0:02:57]}  e6 {[%clk 0:02:59]} 8. Bd3 {[%clk 0:02:57]}  exd5 {[%clk 0:03:00]} 9. cxd5 {[%clk 0:02:57]}  b5 {[%clk 0:03:01]} 10. Nxb5 {[%clk 0:02:56]}  Nxe4 {[%clk 0:03:01]} 11. Bxe4 {[%clk 0:02:49]}  Qa5+ {[%clk 0:02:41]} 12. Nc3 {[%clk 0:02:47]}  Bxc3+ {[%clk 0:02:41]} 13. bxc3 {[%clk 0:02:46]}  Re8 {[%clk 0:02:41]} 14. Ng5 {[%clk 0:02:36]}  h6 {[%clk 0:01:47]} 15. Ne6 {[%clk 0:02:34]}  Bb7 {[%clk 0:01:27]} 16. O-O {[%clk 0:02:32]}  fxe6 {[%clk 0:01:24]} 17. Bxg6 {[%clk 0:02:30]}  Rf8 {[%clk 0:01:23]} 18. c4 {[%clk 0:02:06]}  Qc3 {[%clk 0:01:02]} 19. Bxh6 {[%clk 0:02:02]}  Rf6 {[%clk 0:01:00]} 20. Qh5 {[%clk 0:01:57]}  Nd7 {[%clk 0:00:24]} 21. Bg5 {[%clk 0:01:43]}  Nf8 {[%clk 0:00:06]} 22. Bxf6 {[%clk 0:01:38]}  Qxf6 {[%clk 0:00:07]} 23. Be4 {[%clk 0:01:35]}  e5 {[%clk 0:00:03]} 24. Rab1 {[%clk 0:01:33]}  Ba6 {[%clk 0:00:02]} 25. Rb3 {[%clk 0:01:33]}  Bxc4 {[%clk 0:00:02]} 26. Rg3+ {[%clk 0:01:33]}  Ng6 {[%clk 0:00:00]} 27. Rxg6+ {[%clk 0:01:32]} 1-0


[Site "https://www.chess.com"]

[Event "Titled Tuesday Blitz July 18 Late 2023"]
[White "Vaglio Munoz, Jaime"]
[Black "Sarkar, Justin"]
[WhiteFideId "6500145"]
[BlackFideId "2010011"]
[WhiteElo "2263"]
[BlackElo "2235"]
[Result "1-0"]
[Round "10"]
[TimeControl "180+2"]
[Date "2023.07.18"]
[WhiteClock "0:01:54"]
[BlackClock "0:00:00"]
[Board "106"]

1. e4 {[%clk 0:03:00]}  c5 {[%clk 0:02:53]} 2. a3 {[%clk 0:02:59]}  d5 {[%clk 0:02:37]} 3. exd5 {[%clk 0:02:58]}  Nf6 {[%clk 0:02:33]} 4. Nc3 {[%clk 0:02:57]}  Nxd5 {[%clk 0:02:31]} 5. Qf3 {[%clk 0:02:57]}  Nxc3 {[%clk 0:02:20]} 6. Bc4 {[%clk 0:02:56]}  e6 {[%clk 0:02:20]} 7. Qxc3 {[%clk 0:02:55]}  Nc6 {[%clk 0:02:17]} 8. Nf3 {[%clk 0:02:55]}  a6 {[%clk 0:01:54]} 9. O-O {[%clk 0:02:51]}  Nd4 {[%clk 0:01:35]} 10. b4 {[%clk 0:02:39]}  Nxf3+ {[%clk 0:01:02]} 11. Qxf3 {[%clk 0:02:37]}  Qd4 {[%clk 0:00:59]} 12. Qc3 {[%clk 0:02:32]}  Qxc3 {[%clk 0:00:34]} 13. dxc3 {[%clk 0:02:33]}  Be7 {[%clk 0:00:34]} 14. Be3 {[%clk 0:02:30]}  b5 {[%clk 0:00:23]} 15. Be2 {[%clk 0:02:28]}  Bd7 {[%clk 0:00:12]} 16. bxc5 {[%clk 0:02:22]}  Rc8 {[%clk 0:00:10]} 17. c4 {[%clk 0:02:22]}  Bxc5 {[%clk 0:00:06]} 18. cxb5 {[%clk 0:02:14]}  Bxe3 {[%clk 0:00:05]} 19. fxe3 {[%clk 0:02:14]}  axb5 {[%clk 0:00:05]} 20. Bd3 {[%clk 0:02:10]}  Ke7 {[%clk 0:00:04]} 21. Rfb1 {[%clk 0:02:09]}  Rc5 {[%clk 0:00:03]} 22. Kf2 {[%clk 0:02:07]}  Rhc8 {[%clk 0:00:03]} 23. Ke2 {[%clk 0:02:07]}  g6 {[%clk 0:00:02]} 24. Kd2 {[%clk 0:02:07]}  e5 {[%clk 0:00:02]} 25. e4 {[%clk 0:02:06]}  f5 {[%clk 0:00:02]} 26. Re1 {[%clk 0:02:04]}  f4 {[%clk 0:00:02]} 27. h4 {[%clk 0:02:03]}  h6 {[%clk 0:00:02]} 28. g3 {[%clk 0:02:00]}  g5 {[%clk 0:00:01]} 29. hxg5 {[%clk 0:01:57]}  hxg5 {[%clk 0:00:01]} 30. gxf4 {[%clk 0:01:57]}  exf4 {[%clk 0:00:02]} 31. Rh1 {[%clk 0:01:57]}  Rg8 {[%clk 0:00:01]} 32. Rh7+ {[%clk 0:01:54]}  Kd8 {[%clk 0:00:00]} 33. a4 {[%clk 0:01:54]} 1-0


[Site "https://www.chess.com"]

[Event "Titled Tuesday Blitz July 18 Late 2023"]
[White "Navyblue1"]
[Black "Thiel, Thomas"]
[BlackFideId "4615964"]
[WhiteElo "1878"]
[BlackElo "2246"]
[Result "1-0"]
[Round "10"]
[TimeControl "180+2"]
[Date "2023.07.18"]
[WhiteClock "0:00:02"]
[BlackClock "0:00:00"]
[Board "108"]

1. d4 {[%clk 0:03:00]}  d5 {[%clk 0:02:59]} 2. c4 {[%clk 0:03:00]}  dxc4 {[%clk 0:03:00]} 3. e4 {[%clk 0:02:59]}  e5 {[%clk 0:02:58]} 4. Nf3 {[%clk 0:02:44]}  exd4 {[%clk 0:02:57]} 5. Bxc4 {[%clk 0:02:41]}  Nc6 {[%clk 0:02:57]} 6. Bd5 {[%clk 0:02:37]}  Bb4+ {[%clk 0:02:49]} 7. Bd2 {[%clk 0:02:34]}  Nge7 {[%clk 0:02:49]} 8. Qb3 {[%clk 0:01:58]}  Bxd2+ {[%clk 0:02:46]} 9. Nbxd2 {[%clk 0:01:57]}  O-O {[%clk 0:02:45]} 10. O-O {[%clk 0:01:49]}  Nxd5 {[%clk 0:02:42]} 11. exd5 {[%clk 0:01:47]}  Ne7 {[%clk 0:02:39]} 12. Nxd4 {[%clk 0:01:45]}  Qxd5 {[%clk 0:02:38]} 13. Qxd5 {[%clk 0:01:43]}  Nxd5 {[%clk 0:02:38]} 14. Rac1 {[%clk 0:01:43]}  c6 {[%clk 0:02:38]} 15. Nc4 {[%clk 0:01:37]}  Rd8 {[%clk 0:02:32]} 16. a3 {[%clk 0:01:12]}  Kf8 {[%clk 0:02:29]} 17. h3 {[%clk 0:01:00]}  Nc7 {[%clk 0:02:15]} 18. Nb3 {[%clk 0:00:55]}  b6 {[%clk 0:02:03]} 19. Ne5 {[%clk 0:00:51]}  c5 {[%clk 0:01:58]} 20. Rfd1 {[%clk 0:00:41]}  Be6 {[%clk 0:01:55]} 21. Nd2 {[%clk 0:00:38]}  Bd5 {[%clk 0:01:50]} 22. Nf1 {[%clk 0:00:22]}  f6 {[%clk 0:01:49]} 23. Ng4 {[%clk 0:00:20]}  Bb3 {[%clk 0:01:41]} 24. Re1 {[%clk 0:00:20]}  Re8 {[%clk 0:01:24]} 25. Nge3 {[%clk 0:00:19]}  Nd5 {[%clk 0:01:20]} 26. Nxd5 {[%clk 0:00:15]}  Bxd5 {[%clk 0:01:21]} 27. Ne3 {[%clk 0:00:15]}  Bf7 {[%clk 0:01:15]} 28. b4 {[%clk 0:00:15]}  cxb4 {[%clk 0:01:13]} 29. axb4 {[%clk 0:00:16]}  a5 {[%clk 0:01:11]} 30. bxa5 {[%clk 0:00:15]}  bxa5 {[%clk 0:01:11]} 31. Ra1 {[%clk 0:00:15]}  a4 {[%clk 0:01:11]} 32. Ra3 {[%clk 0:00:15]}  Bb3 {[%clk 0:01:06]} 33. Rc1 {[%clk 0:00:15]}  Rac8 {[%clk 0:01:04]} 34. Rca1 {[%clk 0:00:15]}  g6 {[%clk 0:00:56]} 35. Rb1 {[%clk 0:00:14]}  f5 {[%clk 0:00:52]} 36. Rbxb3 {[%clk 0:00:14]}  axb3 {[%clk 0:00:50]} 37. Rxb3 {[%clk 0:00:14]}  Kf7 {[%clk 0:00:42]} 38. Rb7+ {[%clk 0:00:14]}  Re7 {[%clk 0:00:42]} 39. Rxe7+ {[%clk 0:00:13]}  Kxe7 {[%clk 0:00:42]} 40. Nd5+ {[%clk 0:00:14]}  Kd6 {[%clk 0:00:40]} 41. Nf4 {[%clk 0:00:14]}  Ke5 {[%clk 0:00:39]} 42. g3 {[%clk 0:00:13]}  Ke4 {[%clk 0:00:38]} 43. Kg2 {[%clk 0:00:13]}  Rc2 {[%clk 0:00:36]} 44. h4 {[%clk 0:00:13]}  Ke5 {[%clk 0:00:30]} 45. Nh3 {[%clk 0:00:13]}  Kf6 {[%clk 0:00:30]} 46. Ng5 {[%clk 0:00:12]}  h6 {[%clk 0:00:30]} 47. Nf3 {[%clk 0:00:12]}  g5 {[%clk 0:00:29]} 48. hxg5+ {[%clk 0:00:13]}  hxg5 {[%clk 0:00:29]} 49. Nd4 {[%clk 0:00:13]}  Ra2 {[%clk 0:00:26]} 50. Nb5 {[%clk 0:00:09]}  Ke5 {[%clk 0:00:21]} 51. Nc3 {[%clk 0:00:08]}  Rc2 {[%clk 0:00:20]} 52. Nd1 {[%clk 0:00:07]}  Re2 {[%clk 0:00:15]} 53. Ne3 {[%clk 0:00:06]}  Ke4 {[%clk 0:00:14]} 54. Nf1 {[%clk 0:00:05]}  f4 {[%clk 0:00:12]} 55. gxf4 {[%clk 0:00:05]}  gxf4 {[%clk 0:00:13]} 56. Kg1 {[%clk 0:00:04]}  f3 {[%clk 0:00:11]} 57. Ng3+ {[%clk 0:00:04]}  Kd3 {[%clk 0:00:10]} 58. Kf1 {[%clk 0:00:04]}  Ra2 {[%clk 0:00:08]} 59. Kg1 {[%clk 0:00:03]}  Ra1+ {[%clk 0:00:08]} 60. Kh2 {[%clk 0:00:03]}  Re1 {[%clk 0:00:00]} 61. Kh3 {[%clk 0:00:02]} 1-0


[Site "https://www.chess.com"]

[Event "Titled Tuesday Blitz July 18 Late 2023"]
[White "Lutz, Igor Oscar"]
[Black "De Souza, Cristiano Gomes"]
[WhiteFideId "2110806"]
[BlackFideId "2151758"]
[WhiteElo "1948"]
[BlackElo "2230"]
[Result "1-0"]
[Round "10"]
[TimeControl "180+2"]
[Date "2023.07.18"]
[WhiteClock "0:00:13"]
[BlackClock "0:01:27"]
[Board "111"]

1. d4 {[%clk 0:02:49]}  Nf6 {[%clk 0:02:57]} 2. c4 {[%clk 0:02:48]}  g6 {[%clk 0:02:57]} 3. Nc3 {[%clk 0:02:48]}  Bg7 {[%clk 0:02:54]} 4. e4 {[%clk 0:02:48]}  d6 {[%clk 0:02:54]} 5. Nf3 {[%clk 0:02:48]}  O-O {[%clk 0:02:54]} 6. Be2 {[%clk 0:02:48]}  e5 {[%clk 0:02:53]} 7. Be3 {[%clk 0:02:49]}  Ng4 {[%clk 0:02:51]} 8. Bg5 {[%clk 0:02:49]}  f6 {[%clk 0:02:52]} 9. Bd2 {[%clk 0:02:46]}  Nc6 {[%clk 0:02:52]} 10. d5 {[%clk 0:02:45]}  Ne7 {[%clk 0:02:51]} 11. h3 {[%clk 0:02:45]}  Nh6 {[%clk 0:02:51]} 12. g4 {[%clk 0:01:59]}  f5 {[%clk 0:02:42]} 13. gxf5 {[%clk 0:01:33]}  gxf5 {[%clk 0:02:40]} 14. exf5 {[%clk 0:01:27]}  Nhxf5 {[%clk 0:02:38]} 15. Ne4 {[%clk 0:01:26]}  Ng6 {[%clk 0:02:35]} 16. Rg1 {[%clk 0:01:24]}  Kh8 {[%clk 0:02:35]} 17. Qc2 {[%clk 0:01:15]}  Nd4 {[%clk 0:02:32]} 18. Nxd4 {[%clk 0:01:06]}  exd4 {[%clk 0:02:30]} 19. O-O-O {[%clk 0:01:02]}  Bxh3 {[%clk 0:02:18]} 20. Ng5 {[%clk 0:00:50]}  Bf5 {[%clk 0:02:16]} 21. Bd3 {[%clk 0:00:50]}  Qd7 {[%clk 0:02:12]} 22. Ne6 {[%clk 0:00:46]}  Bxe6 {[%clk 0:02:04]} 23. dxe6 {[%clk 0:00:38]}  Qxe6 {[%clk 0:02:03]} 24. Bxg6 {[%clk 0:00:38]}  hxg6 {[%clk 0:02:02]} 25. Rxg6 {[%clk 0:00:35]}  Qf5 {[%clk 0:02:01]} 26. Rh1+ {[%clk 0:00:34]}  Kg8 {[%clk 0:02:01]} 27. Rhg1 {[%clk 0:00:24]}  Qxc2+ {[%clk 0:01:59]} 28. Kxc2 {[%clk 0:00:24]}  Rf7 {[%clk 0:01:59]} 29. Bh6 {[%clk 0:00:22]}  Rxf2+ {[%clk 0:01:52]} 30. Kb3 {[%clk 0:00:20]}  Rf7 {[%clk 0:01:47]} 31. Bxg7 {[%clk 0:00:19]}  Re8 {[%clk 0:01:35]} 32. Bxd4+ {[%clk 0:00:18]}  Kh7 {[%clk 0:01:35]} 33. Rg7+ {[%clk 0:00:14]}  Rxg7 {[%clk 0:01:34]} 34. Rxg7+ {[%clk 0:00:15]}  Kh6 {[%clk 0:01:35]} 35. Rxc7 {[%clk 0:00:16]}  b6 {[%clk 0:01:32]} 36. Rxa7 {[%clk 0:00:15]}  Kg5 {[%clk 0:01:32]} 37. Bxb6 {[%clk 0:00:16]}  Kf4 {[%clk 0:01:32]} 38. Rf7+ {[%clk 0:00:16]}  Ke4 {[%clk 0:01:31]} 39. Rd7 {[%clk 0:00:15]}  d5 {[%clk 0:01:31]} 40. Rxd5 {[%clk 0:00:15]}  Rb8 {[%clk 0:01:27]} 41. Rb5 {[%clk 0:00:13]} 1-0


[Site "https://www.chess.com"]